[Event "Late-Titled-Tuesday-Blitz-September-05-2023"]
[Site "Chess.com"]
[Date "2023.09.05"]
[Round "3"]
[White "Grossboss19"]
[Black "MariaFominykh"]
[Result "1-0"]
[WhiteElo "2491"]
[BlackElo "2281"]
[TimeControl "180+1"]
[EndTime "14:29:10 PDT"]
[Termination "Grossboss19 won on time"]

1. a3 {[%clk 0:02:55.9]} 1... Nf6 {[%clk 0:02:59]} 2. b4 {[%clk 0:02:55.6]} 2...
e5 {[%clk 0:02:53.8]} 3. Bb2 {[%clk 0:02:55.6]} 3... d6 {[%clk 0:02:54.1]} 4.
Nf3 {[%clk 0:02:52.7]} 4... c6 {[%clk 0:02:52.4]} 5. c4 {[%clk 0:02:53.1]} 5...
Be6 {[%clk 0:02:50.8]} 6. e3 {[%clk 0:02:52.8]} 6... Nbd7 {[%clk 0:02:48.5]} 7.
d4 {[%clk 0:02:52.9]} 7... e4 {[%clk 0:02:42]} 8. Nfd2 {[%clk 0:02:52.7]} 8...
d5 {[%clk 0:02:42.3]} 9. Nc3 {[%clk 0:02:51.2]} 9... Bd6 {[%clk 0:02:38.1]} 10.
Qc2 {[%clk 0:02:44.2]} 10... O-O {[%clk 0:02:36.6]} 11. h3 {[%clk 0:02:41.8]}
11... Rc8 {[%clk 0:02:14.8]} 12. Be2 {[%clk 0:02:37.3]} 12... Bb8 {[%clk
0:02:14.3]} 13. g4 {[%clk 0:02:17.2]} 13... Ne8 {[%clk 0:02:01.4]} 14. O-O-O
{[%clk 0:02:06.7]} 14... a5 {[%clk 0:01:55.1]} 15. c5 {[%clk 0:01:57.6]} 15...
axb4 {[%clk 0:01:51.8]} 16. axb4 {[%clk 0:01:58.5]} 16... b6 {[%clk 0:01:45.4]}
17. f4 {[%clk 0:01:55.3]} 17... exf3 {[%clk 0:01:44.4]} 18. Nxf3 {[%clk
0:01:54.9]} 18... bxc5 {[%clk 0:01:44.1]} 19. bxc5 {[%clk 0:01:53.8]} 19... f5
{[%clk 0:01:32.3]} 20. Rdg1 {[%clk 0:01:46.1]} 20... Kh8 {[%clk 0:01:22.9]} 21.
Bd3 {[%clk 0:01:09.4]} 21... Qf6 {[%clk 0:01:11.7]} 22. g5 {[%clk 0:01:06.1]}
22... Qe7 {[%clk 0:01:10.6]} 23. h4 {[%clk 0:01:00.9]} 23... Bg8 {[%clk
0:00:59.8]} 24. Re1 {[%clk 0:00:53.6]} 24... Bg3 {[%clk 0:00:41]} 25. Re2 {[%clk
0:00:52.5]} 25... Be6 {[%clk 0:00:29]} 26. h5 {[%clk 0:00:47.9]} 26... Rb8
{[%clk 0:00:23.2]} 27. Rg2 {[%clk 0:00:40.3]} 27... Bc7 {[%clk 0:00:20]} 28. Ne2
{[%clk 0:00:39.3]} 28... Rb7 {[%clk 0:00:07.7]} 29. Nf4 {[%clk 0:00:36.2]} 29...
Bxf4 {[%clk 0:00:07.1]} 30. exf4 {[%clk 0:00:37.1]} 30... Nc7 {[%clk 0:00:07.2]}
31. Kd2 {[%clk 0:00:26.1]} 31... Nb5 {[%clk 0:00:06.9]} 32. Re2 {[%clk
0:00:20.1]} 32... Qf7 {[%clk 0:00:04]} 33. g6 {[%clk 0:00:20.2]} 33... Qf6
{[%clk 0:00:03.7]} 34. Ng5 {[%clk 0:00:19.7]} 34... Nxd4 {[%clk 0:00:01.8]} 35.
Bxd4 {[%clk 0:00:16.6]} 35... Qxd4 {[%clk 0:00:01.9]} 36. Nxe6 {[%clk
0:00:17.5]} 36... Qb4+ {[%clk 0:00:01.4]} 37. Ke3 {[%clk 0:00:16.4]} 37... Re8
{[%clk 0:00:01.5]} 38. Kf3 {[%clk 0:00:15.9]} 38... Nxc5 {[%clk 0:00:01.8]} 39.
Nxc5 {[%clk 0:00:15.3]} 39... Rxe2 {[%clk 0:00:02]} 40. Qxe2 {[%clk 0:00:15.3]}
40... Rb8 {[%clk 0:00:01.7]} 41. Nd7 {[%clk 0:00:12.7]} 41... Qd6 {[%clk
0:00:01.7]} 42. Nxb8 {[%clk 0:00:12.2]} 42... Qxb8 {[%clk 0:00:02.2]} 43. Re1
{[%clk 0:00:12.4]} 1-0

[Event "Late-Titled-Tuesday-Blitz-September-05-2023"]
[Site "Chess.com"]
[Date "2023.09.05"]
[Round "3"]
[White "isla88"]
[Black "ChessSwole"]
[Result "1-0"]
[WhiteElo "2490"]
[BlackElo "2678"]
[TimeControl "180+1"]
[EndTime "14:29:12 PDT"]
[Termination "isla88 won on time"]

1. d4 {[%clk 0:03:00.9]} 1... Nf6 {[%clk 0:03:00]} 2. Nf3 {[%clk 0:03:00]} 2...
g6 {[%clk 0:02:58.5]} 3. Nbd2 {[%clk 0:02:59.8]} 3... Bg7 {[%clk 0:02:57.7]} 4.
e4 {[%clk 0:03:00]} 4... O-O {[%clk 0:02:57.7]} 5. Bd3 {[%clk 0:03:00]} 5... d6
{[%clk 0:02:53.2]} 6. O-O {[%clk 0:02:58.3]} 6... Nc6 {[%clk 0:02:52.4]} 7. Re1
{[%clk 0:02:55.3]} 7... e5 {[%clk 0:02:52]} 8. dxe5 {[%clk 0:02:55.1]} 8... dxe5
{[%clk 0:02:51.5]} 9. Nc4 {[%clk 0:02:53.4]} 9... Qe7 {[%clk 0:02:49.2]} 10. b3
{[%clk 0:02:49.4]} 10... Rd8 {[%clk 0:02:45.4]} 11. Ba3 {[%clk 0:02:48.8]} 11...
Qe8 {[%clk 0:02:44.6]} 12. Qc1 {[%clk 0:02:45.2]} 12... Bg4 {[%clk 0:02:42.7]}
13. Qe3 {[%clk 0:02:32.2]} 13... Nh5 {[%clk 0:02:32]} 14. g3 {[%clk 0:02:22.3]}
14... h6 {[%clk 0:02:00]} 15. Be2 {[%clk 0:02:10.5]} 15... Qe6 {[%clk
0:01:54.2]} 16. Rad1 {[%clk 0:02:04.1]} 16... Nd4 {[%clk 0:01:53]} 17. Nxd4
{[%clk 0:01:58.1]} 17... exd4 {[%clk 0:01:53.9]} 18. Bxg4 {[%clk 0:01:34.7]}
18... Qxg4 {[%clk 0:01:41.5]} 19. Qe2 {[%clk 0:01:25.8]} 19... Qe6 {[%clk
0:01:32.1]} 20. f4 {[%clk 0:01:17.3]} 20... Nf6 {[%clk 0:01:25]} 21. Kg2 {[%clk
0:01:15.5]} 21... b6 {[%clk 0:01:17.9]} 22. Nb2 {[%clk 0:01:14.7]} 22... c5
{[%clk 0:01:17.2]} 23. Nd3 {[%clk 0:01:14.4]} 23... Re8 {[%clk 0:01:13.5]} 24.
e5 {[%clk 0:01:11.1]} 24... Nd5 {[%clk 0:01:10.1]} 25. Qf3 {[%clk 0:01:08.5]}
25... Rad8 {[%clk 0:01:01.3]} 26. Kh1 {[%clk 0:01:07.9]} 26... h5 {[%clk
0:00:58.6]} 27. Bc1 {[%clk 0:01:04.7]} 27... Nc3 {[%clk 0:00:57]} 28. Rd2 {[%clk
0:01:04.5]} 28... Nxa2 {[%clk 0:00:57]} 29. Bb2 {[%clk 0:01:04.4]} 29... c4
{[%clk 0:00:53]} 30. bxc4 {[%clk 0:01:01.2]} 30... Qxc4 {[%clk 0:00:53.9]} 31.
f5 {[%clk 0:01:01.1]} 31... Nc3 {[%clk 0:00:44.6]} 32. fxg6 {[%clk 0:00:56.3]}
32... fxg6 {[%clk 0:00:43.9]} 33. Nf4 {[%clk 0:00:54.4]} 33... Rf8 {[%clk
0:00:26.3]} 34. Qb7 {[%clk 0:00:49.4]} 34... Rf7 {[%clk 0:00:16.2]} 35. Qg2
{[%clk 0:00:48.2]} 35... g5 {[%clk 0:00:11.1]} 36. e6 {[%clk 0:00:47.9]} 36...
Re7 {[%clk 0:00:10.2]} 37. Nxh5 {[%clk 0:00:41.9]} 37... Rxe6 {[%clk 0:00:10.5]}
38. Rf1 {[%clk 0:00:29]} 38... Rf8 {[%clk 0:00:07.6]} 39. Rxf8+ {[%clk
0:00:26.5]} 39... Bxf8 {[%clk 0:00:08.5]} 40. h4 {[%clk 0:00:20.6]} 40... Re1+
{[%clk 0:00:06.9]} 41. Kh2 {[%clk 0:00:21]} 41... g4 {[%clk 0:00:05.9]} 42. Rf2
{[%clk 0:00:20.4]} 42... Bd6 {[%clk 0:00:03.9]} 43. Nf6+ {[%clk 0:00:20.2]}
43... Kh8 {[%clk 0:00:04.1]} 44. Nxg4 {[%clk 0:00:20.1]} 44... Qe6 {[%clk
0:00:01.7]} 45. Kh3 {[%clk 0:00:17.2]} 45... Re4 {[%clk 0:00:01.1]} 46. Bxc3
{[%clk 0:00:17]} 46... Qxg4+ {[%clk 0:00:01.2]} 47. Kh2 {[%clk 0:00:17.6]} 1-0

[Event "Late-Titled-Tuesday-Blitz-September-05-2023"]
[Site "Chess.com"]
[Date "2023.09.05"]
[Round "3"]
[White "bascheyaro"]
[Black "jup1978"]
[Result "1-0"]
[WhiteElo "2807"]
[BlackElo "2535"]
[TimeControl "180+1"]
[EndTime "14:29:15 PDT"]
[Termination "bascheyaro won on time"]

1. d4 {[%clk 0:03:00.9]} 1... d5 {[%clk 0:02:59.4]} 2. Nf3 {[%clk 0:03:01.3]}
2... Nf6 {[%clk 0:02:58.7]} 3. Bf4 {[%clk 0:03:01.4]} 3... c5 {[%clk 0:02:53.6]}
4. e3 {[%clk 0:03:00.8]} 4... cxd4 {[%clk 0:02:53.7]} 5. exd4 {[%clk 0:03:01]}
5... Nc6 {[%clk 0:02:54.1]} 6. c3 {[%clk 0:03:01.3]} 6... Bg4 {[%clk 0:02:47.3]}
7. Nbd2 {[%clk 0:03:00.6]} 7... Bxf3 {[%clk 0:02:44.5]} 8. Nxf3 {[%clk
0:03:00.6]} 8... e6 {[%clk 0:02:45.4]} 9. Qb3 {[%clk 0:03:00.6]} 9... Qd7 {[%clk
0:02:38.3]} 10. Ne5 {[%clk 0:02:59.4]} 10... Qc8 {[%clk 0:02:30.5]} 11. Qa4
{[%clk 0:02:45.4]} 11... Nd7 {[%clk 0:02:26.5]} 12. Nxc6 {[%clk 0:02:42.3]}
12... Qxc6 {[%clk 0:02:21.6]} 13. Qxc6 {[%clk 0:02:17.8]} 13... bxc6 {[%clk
0:02:17.5]} 14. Ba6 {[%clk 0:02:18.7]} 14... e5 {[%clk 0:02:05.3]} 15. dxe5
{[%clk 0:02:13.7]} 15... Nc5 {[%clk 0:02:05.1]} 16. Be2 {[%clk 0:02:10.5]} 16...
Ne6 {[%clk 0:02:04]} 17. Be3 {[%clk 0:02:09.4]} 17... Bc5 {[%clk 0:02:00.1]} 18.
Kd2 {[%clk 0:01:47.6]} 18... Rb8 {[%clk 0:01:57.5]} 19. b4 {[%clk 0:01:47.2]}
19... d4 {[%clk 0:01:46.3]} 20. bxc5 {[%clk 0:01:47.3]} 20... dxe3+ {[%clk
0:01:45.9]} 21. Kxe3 {[%clk 0:01:47.7]} 21... Ke7 {[%clk 0:01:40.1]} 22. Rab1
{[%clk 0:01:41.6]} 22... Nxc5 {[%clk 0:01:39.2]} 23. f4 {[%clk 0:01:40.7]} 23...
Na4 {[%clk 0:01:31.5]} 24. Rhc1 {[%clk 0:01:40.2]} 24... Rhd8 {[%clk 0:01:11.3]}
25. Bf3 {[%clk 0:01:40.1]} 25... Rxb1 {[%clk 0:01:03.1]} 26. Rxb1 {[%clk
0:01:39.3]} 26... Nxc3 {[%clk 0:01:03.2]} 27. Rb3 {[%clk 0:01:08.9]} 27... Nxa2
{[%clk 0:00:54.7]} 28. Bxc6 {[%clk 0:01:08.8]} 28... Rc8 {[%clk 0:00:46.4]} 29.
Rb7+ {[%clk 0:01:06.1]} 29... Kf8 {[%clk 0:00:35.1]} 30. Bd5 {[%clk 0:01:05.9]}
30... Nc3 {[%clk 0:00:33]} 31. Rxf7+ {[%clk 0:00:40.2]} 31... Ke8 {[%clk
0:00:32.3]} 32. Bb3 {[%clk 0:00:37.1]} 32... Rb8 {[%clk 0:00:28.2]} 33. Bc4
{[%clk 0:00:33.8]} 33... Nd1+ {[%clk 0:00:22.9]} 34. Ke2 {[%clk 0:00:23.6]}
34... Nb2 {[%clk 0:00:22.6]} 35. Bd5 {[%clk 0:00:19.3]} 35... Rd8 {[%clk
0:00:20]} 36. Ba2 {[%clk 0:00:18.2]} 36... Rc8 {[%clk 0:00:17.8]} 37. Rxg7
{[%clk 0:00:16.2]} 37... Rc2+ {[%clk 0:00:18.1]} 38. Kf3 {[%clk 0:00:16.8]}
38... Nd1 {[%clk 0:00:16.7]} 39. Bb1 {[%clk 0:00:15.9]} 39... Rf2+ {[%clk
0:00:16]} 40. Kg3 {[%clk 0:00:16.4]} 40... h5 {[%clk 0:00:13.7]} 41. Bg6+ {[%clk
0:00:13.1]} 41... Kf8 {[%clk 0:00:12.6]} 42. Rf7+ {[%clk 0:00:13.6]} 42... Kg8
{[%clk 0:00:13.2]} 43. f5 {[%clk 0:00:14.1]} 43... h4+ {[%clk 0:00:08.8]} 44.
Kxh4 {[%clk 0:00:14.5]} 44... Rxg2 {[%clk 0:00:08.4]} 45. e6 {[%clk 0:00:14.9]}
45... Nf2 {[%clk 0:00:02]} 46. e7 {[%clk 0:00:14.2]} 1-0

[Event "Late-Titled-Tuesday-Blitz-September-05-2023"]
[Site "Chess.com"]
[Date "2023.09.05"]
[Round "3"]
[White "rasmussvane"]
[Black "simplerXiao"]
[Result "1-0"]
[WhiteElo "2951"]
[BlackElo "2505"]
[TimeControl "180+1"]
[EndTime "14:29:17 PDT"]
[Termination "rasmussvane won by checkmate"]

1. Nf3 {[%clk 0:03:00.9]} 1... d5 {[%clk 0:02:59.1]} 2. g3 {[%clk 0:03:00.8]}
2... Nc6 {[%clk 0:02:56.1]} 3. d4 {[%clk 0:03:00.5]} 3... Bf5 {[%clk 0:02:56.3]}
4. Bg2 {[%clk 0:03:00.3]} 4... Qd7 {[%clk 0:02:56.6]} 5. c4 {[%clk 0:02:58.1]}
5... Nf6 {[%clk 0:02:51.8]} 6. cxd5 {[%clk 0:02:50]} 6... Nxd5 {[%clk
0:02:50.5]} 7. O-O {[%clk 0:02:50.7]} 7... Bh3 {[%clk 0:02:47.9]} 8. e4 {[%clk
0:02:49.1]} 8... Nb6 {[%clk 0:02:43.9]} 9. d5 {[%clk 0:02:48.3]} 9... Bxg2
{[%clk 0:02:43]} 10. Kxg2 {[%clk 0:02:45.4]} 10... Nd8 {[%clk 0:02:40.2]} 11.
Ne5 {[%clk 0:02:43.8]} 11... Qd6 {[%clk 0:02:39.7]} 12. Bf4 {[%clk 0:02:37.9]}
12... Qf6 {[%clk 0:02:28.4]} 13. Nc3 {[%clk 0:01:25]} 13... g5 {[%clk
0:01:30.2]} 14. Nb5 {[%clk 0:01:23.8]} 14... Rc8 {[%clk 0:01:27]} 15. Ng4 {[%clk
0:01:21.5]} 15... Qxb2 {[%clk 0:01:24.6]} 16. Nxc7+ {[%clk 0:01:21.4]} 16...
Rxc7 {[%clk 0:01:23.6]} 17. Bxc7 {[%clk 0:01:22.3]} 17... Bg7 {[%clk 0:01:21.1]}
18. d6 {[%clk 0:01:11.8]} 18... Qxa1 {[%clk 0:01:15.2]} 19. Qxa1 {[%clk
0:00:30.5]} 19... Bxa1 {[%clk 0:01:14.3]} 20. Rxa1 {[%clk 0:00:31.4]} 20... Ne6
{[%clk 0:01:05]} 21. Bxb6 {[%clk 0:00:26]} 21... axb6 {[%clk 0:01:02.7]} 22. Rb1
{[%clk 0:00:24.6]} 22... exd6 {[%clk 0:01:00.4]} 23. Rxb6 {[%clk 0:00:24]} 23...
Nc5 {[%clk 0:00:59.6]} 24. Rxd6 {[%clk 0:00:20.6]} 24... Nxe4 {[%clk 0:00:59.2]}
25. Rb6 {[%clk 0:00:21]} 25... Nc5 {[%clk 0:00:58.1]} 26. Rb5 {[%clk 0:00:20.8]}
26... Ne6 {[%clk 0:00:55.4]} 27. Rxb7 {[%clk 0:00:21]} 27... O-O {[%clk
0:00:54.7]} 28. a4 {[%clk 0:00:20.5]} 28... Ra8 {[%clk 0:00:52.8]} 29. Nh6+
{[%clk 0:00:20.3]} 29... Kg7 {[%clk 0:00:50]} 30. Nxf7 {[%clk 0:00:20.6]} 30...
Kf6 {[%clk 0:00:50.4]} 31. Nd6 {[%clk 0:00:20.5]} 31... Rxa4 {[%clk 0:00:49.1]}
32. Rxh7 {[%clk 0:00:20.4]} 32... Ra2 {[%clk 0:00:47.6]} 33. Rf7+ {[%clk
0:00:17.8]} 33... Kg6 {[%clk 0:00:47.8]} 34. Rf3 {[%clk 0:00:15.9]} 34... Nd4
{[%clk 0:00:46]} 35. Rd3 {[%clk 0:00:16.2]} 35... Nc2 {[%clk 0:00:45]} 36. Rc3
{[%clk 0:00:11.3]} 36... Ne1+ {[%clk 0:00:43.7]} 37. Kf1 {[%clk 0:00:11.3]}
37... Nc2 {[%clk 0:00:43]} 38. Ne4 {[%clk 0:00:10.4]} 38... Nd4 {[%clk
0:00:41.5]} 39. Rd3 {[%clk 0:00:09.5]} 39... Ne6 {[%clk 0:00:39.1]} 40. Rd5
{[%clk 0:00:07.7]} 40... g4 {[%clk 0:00:36.2]} 41. Re5 {[%clk 0:00:07.8]} 41...
Ra6 {[%clk 0:00:28.2]} 42. Kg2 {[%clk 0:00:08.1]} 42... Kh6 {[%clk 0:00:20.7]}
43. Nc5 {[%clk 0:00:06.8]} 43... Nxc5 {[%clk 0:00:13.2]} 44. Rxc5 {[%clk
0:00:07.7]} 44... Kg6 {[%clk 0:00:13.1]} 45. h3 {[%clk 0:00:07.4]} 45... gxh3+
{[%clk 0:00:13]} 46. Kxh3 {[%clk 0:00:08.3]} 46... Ra1 {[%clk 0:00:13.1]} 47. f4
{[%clk 0:00:08.5]} 47... Rh1+ {[%clk 0:00:13.6]} 48. Kg4 {[%clk 0:00:09]} 48...
Ra1 {[%clk 0:00:14.2]} 49. Rc6+ {[%clk 0:00:09.2]} 49... Kf7 {[%clk 0:00:13.8]}
50. Kg5 {[%clk 0:00:10.1]} 50... Rg1 {[%clk 0:00:11.5]} 51. g4 {[%clk
0:00:10.1]} 51... Ra1 {[%clk 0:00:12.3]} 52. f5 {[%clk 0:00:10.5]} 52... Ra5
{[%clk 0:00:12.9]} 53. Rc7+ {[%clk 0:00:10.9]} 53... Kf8 {[%clk 0:00:13]} 54.
Kg6 {[%clk 0:00:11.8]} 54... Ra4 {[%clk 0:00:13.2]} 55. g5 {[%clk 0:00:12]}
55... Rh4 {[%clk 0:00:13.6]} 56. f6 {[%clk 0:00:11.9]} 56... Rh7 {[%clk
0:00:13.9]} 57. Rc8# {[%clk 0:00:11.9]} 1-0

[Event "Late-Titled-Tuesday-Blitz-September-05-2023"]
[Site "Chess.com"]
[Date "2023.09.05"]
[Round "3"]
[White "Kleyton_Lima"]
[Black "SaqoChess_Twitch"]
[Result "0-1"]
[WhiteElo "2505"]
[BlackElo "2736"]
[TimeControl "180+1"]
[EndTime "14:29:18 PDT"]
[Termination "SaqoChess_Twitch won by resignation"]

1. e4 {[%clk 0:03:00.9]} 1... c5 {[%clk 0:02:59.9]} 2. Nf3 {[%clk 0:03:00.1]}
2... d6 {[%clk 0:03:00]} 3. d4 {[%clk 0:03:00.7]} 3... cxd4 {[%clk 0:03:00.9]}
4. Nxd4 {[%clk 0:03:01.5]} 4... Nf6 {[%clk 0:03:01.2]} 5. Nc3 {[%clk 0:03:02.1]}
5... g6 {[%clk 0:03:01.6]} 6. Be3 {[%clk 0:03:02.3]} 6... Bg7 {[%clk 0:03:02.1]}
7. f3 {[%clk 0:03:02.3]} 7... O-O {[%clk 0:03:02.6]} 8. Qd2 {[%clk 0:03:02.1]}
8... Nc6 {[%clk 0:03:03.2]} 9. O-O-O {[%clk 0:03:02.6]} 9... d5 {[%clk
0:03:03.4]} 10. Qe1 {[%clk 0:03:03]} 10... e5 {[%clk 0:03:02.2]} 11. Nxc6 {[%clk
0:03:03.4]} 11... bxc6 {[%clk 0:03:03.1]} 12. exd5 {[%clk 0:03:04.3]} 12... Nxd5
{[%clk 0:03:01.6]} 13. Bc4 {[%clk 0:03:04.7]} 13... Be6 {[%clk 0:02:58.1]} 14.
Ne4 {[%clk 0:03:02.7]} 14... Qc7 {[%clk 0:02:55]} 15. Bc5 {[%clk 0:03:03.1]}
15... Rfd8 {[%clk 0:02:54.5]} 16. Qh4 {[%clk 0:02:44.6]} 16... h6 {[%clk
0:02:33.8]} 17. g4 {[%clk 0:02:43.6]} 17... Nf4 {[%clk 0:02:28.7]} 18. Rxd8+
{[%clk 0:02:32]} 18... Rxd8 {[%clk 0:02:19.7]} 19. Bxe6 {[%clk 0:02:31.5]} 19...
Nxe6 {[%clk 0:02:19.3]} 20. Qf2 {[%clk 0:02:29.3]} 20... f5 {[%clk 0:02:09.7]}
21. gxf5 {[%clk 0:02:24.1]} 21... gxf5 {[%clk 0:02:10.6]} 22. Nc3 {[%clk
0:02:22]} 22... e4 {[%clk 0:01:37.6]} 23. fxe4 {[%clk 0:02:15.1]} 23... fxe4
{[%clk 0:01:36.7]} 24. Rg1 {[%clk 0:02:05.3]} 24... Qe5 {[%clk 0:01:32.9]} 25.
Be3 {[%clk 0:01:49.9]} 25... Kh7 {[%clk 0:01:25.6]} 26. Kb1 {[%clk 0:01:49.3]}
26... Rb8 {[%clk 0:01:22.1]} 27. Kc1 {[%clk 0:00:54.6]} 27... Rxb2 {[%clk
0:01:17.4]} 28. Kxb2 {[%clk 0:00:55.5]} 28... Qxc3+ {[%clk 0:01:17.4]} 29. Kc1
{[%clk 0:00:55.1]} 29... Qb2+ {[%clk 0:01:14.4]} 30. Kd1 {[%clk 0:00:49.4]}
30... Qb1+ {[%clk 0:01:13.7]} 31. Kd2 {[%clk 0:00:44.4]} 31... Qb4+ {[%clk
0:01:13]} 32. Kd1 {[%clk 0:00:39.9]} 32... Qd6+ {[%clk 0:01:08.2]} 33. Kc1
{[%clk 0:00:36.9]} 33... Qe5 {[%clk 0:00:53.2]} 34. Kd1 {[%clk 0:00:28.2]} 34...
c5 {[%clk 0:00:37.4]} 35. Rf1 {[%clk 0:00:23.1]} 35... Qd5+ {[%clk 0:00:33.4]}
36. Kc1 {[%clk 0:00:18.6]} 36... Qxa2 {[%clk 0:00:25.8]} 37. Qf5+ {[%clk
0:00:18.4]} 37... Kh8 {[%clk 0:00:26.1]} 38. Rg1 {[%clk 0:00:12.3]} 38... Qa1+
{[%clk 0:00:18.9]} 39. Kd2 {[%clk 0:00:12]} 39... Qc3+ {[%clk 0:00:19.5]} 40.
Kd1 {[%clk 0:00:11.1]} 40... Qxe3 {[%clk 0:00:17.9]} 41. Rxg7 {[%clk 0:00:10]}
41... Qd4+ {[%clk 0:00:16.9]} 42. Kc1 {[%clk 0:00:09.2]} 42... Nxg7 {[%clk
0:00:16.8]} 43. Qc8+ {[%clk 0:00:09]} 43... Kh7 {[%clk 0:00:17]} 44. h4 {[%clk
0:00:06.5]} 44... e3 {[%clk 0:00:17]} 45. Qg4 {[%clk 0:00:04.7]} 45... Qd2+
{[%clk 0:00:16.2]} 46. Kb2 {[%clk 0:00:04.2]} 46... Qb4+ {[%clk 0:00:17.1]} 47.
Kc1 {[%clk 0:00:03.6]} 47... Qxg4 {[%clk 0:00:17.1]} 0-1

[Event "Late-Titled-Tuesday-Blitz-September-05-2023"]
[Site "Chess.com"]
[Date "2023.09.05"]
[Round "3"]
[White "wild3000"]
[Black "ckgchess"]
[Result "0-1"]
[WhiteElo "2346"]
[BlackElo "2846"]
[TimeControl "180+1"]
[EndTime "14:29:19 PDT"]
[Termination "ckgchess won on time"]

1. e4 {[%clk 0:02:59.2]} 1... e5 {[%clk 0:02:59.8]} 2. Nf3 {[%clk 0:02:58.7]}
2... Nf6 {[%clk 0:03:00.3]} 3. Nxe5 {[%clk 0:02:57]} 3... d5 {[%clk 0:03:00.5]}
4. exd5 {[%clk 0:02:50.7]} 4... Qxd5 {[%clk 0:03:01.4]} 5. d4 {[%clk 0:02:50]}
5... Nc6 {[%clk 0:03:01.5]} 6. Nxc6 {[%clk 0:02:45.5]} 6... Qxc6 {[%clk
0:03:02.4]} 7. Nc3 {[%clk 0:02:40.4]} 7... Bb4 {[%clk 0:03:02.4]} 8. Qe2+ {[%clk
0:02:30.3]} 8... Kd8 {[%clk 0:02:58.3]} 9. Qd3 {[%clk 0:02:04.9]} 9... Re8+
{[%clk 0:02:57.4]} 10. Be3 {[%clk 0:02:04.4]} 10... Nd5 {[%clk 0:02:18.2]} 11.
Kd2 {[%clk 0:02:04.1]} 11... Bf5 {[%clk 0:01:53.4]} 12. Qc4 {[%clk 0:02:03.4]}
12... Bxc3+ {[%clk 0:01:47]} 13. bxc3 {[%clk 0:02:04.3]} 13... Nxe3 {[%clk
0:01:47]} 14. fxe3 {[%clk 0:02:03.4]} 14... Qe4 {[%clk 0:01:37.5]} 15. Qd3
{[%clk 0:01:44.6]} 15... Qe6 {[%clk 0:01:21.4]} 16. Qe2 {[%clk 0:01:39.1]} 16...
Ke7 {[%clk 0:01:07.3]} 17. Qf2 {[%clk 0:01:34.4]} 17... Kf8 {[%clk 0:01:05.2]}
18. Bb5 {[%clk 0:01:26.9]} 18... c6 {[%clk 0:01:00.7]} 19. Bd3 {[%clk
0:01:18.7]} 19... Bg6 {[%clk 0:00:52]} 20. h4 {[%clk 0:01:12.6]} 20... Kg8
{[%clk 0:00:49.5]} 21. h5 {[%clk 0:01:11.7]} 21... Bxd3 {[%clk 0:00:49.1]} 22.
cxd3 {[%clk 0:01:11.8]} 22... h6 {[%clk 0:00:49.4]} 23. c4 {[%clk 0:00:58.3]}
23... Rad8 {[%clk 0:00:48.5]} 24. a4 {[%clk 0:00:48.4]} 24... b6 {[%clk
0:00:46.1]} 25. e4 {[%clk 0:00:44]} 25... a6 {[%clk 0:00:39.2]} 26. d5 {[%clk
0:00:41.8]} 26... cxd5 {[%clk 0:00:40.1]} 27. cxd5 {[%clk 0:00:41.6]} 27... Qe5
{[%clk 0:00:40.8]} 28. Rac1 {[%clk 0:00:28.6]} 28... Qb2+ {[%clk 0:00:39]} 29.
Rc2 {[%clk 0:00:27.7]} 29... Qb4+ {[%clk 0:00:39.2]} 30. Rc3 {[%clk 0:00:17.7]}
30... Qb2+ {[%clk 0:00:24.6]} 31. Rc2 {[%clk 0:00:17.4]} 31... Qb4+ {[%clk
0:00:25.4]} 32. Rc3 {[%clk 0:00:17.8]} 32... Re5 {[%clk 0:00:26.2]} 33. g4
{[%clk 0:00:15.8]} 33... Rg5 {[%clk 0:00:25.7]} 34. Qf4 {[%clk 0:00:13.3]} 34...
Qxa4 {[%clk 0:00:23.5]} 35. Rf1 {[%clk 0:00:13.1]} 35... f6 {[%clk 0:00:20.9]}
36. Qe3 {[%clk 0:00:11.7]} 36... Qb4 {[%clk 0:00:19.1]} 37. Qf4 {[%clk
0:00:10.1]} 37... a5 {[%clk 0:00:17.6]} 38. Rc1 {[%clk 0:00:09.9]} 38... Rgxd5
{[%clk 0:00:16.4]} 39. Qe3 {[%clk 0:00:03.5]} 39... Rxd3+ {[%clk 0:00:14.7]} 40.
Qxd3 {[%clk 0:00:04.4]} 40... Rxd3+ {[%clk 0:00:15.3]} 41. Kxd3 {[%clk
0:00:05.2]} 41... Kh7 {[%clk 0:00:15]} 42. Rc4 {[%clk 0:00:04.7]} 42... Qb5
{[%clk 0:00:15]} 43. Ke3 {[%clk 0:00:03.8]} 43... Qg5+ {[%clk 0:00:15.2]} 44.
Kf3 {[%clk 0:00:03.4]} 44... b5 {[%clk 0:00:14.6]} 45. Rc5 {[%clk 0:00:03.2]}
45... Qd2 {[%clk 0:00:13.7]} 46. R1c2 {[%clk 0:00:03.1]} 46... Qd3+ {[%clk
0:00:13.9]} 47. Kf4 {[%clk 0:00:03.4]} 47... b4 {[%clk 0:00:14.8]} 0-1